Cogmind - Beta 13 @@@ ROGUE MODE // 2024.03.31 @ 12:16:57 Player: Gertrude Result: Destroyed by G-47 Trooper with Particle Gun Performance ------------- Evolutions (1) 500 Regions Visited (2) 400 Robots Destroyed (21) 105 Value Destroyed (435) 435 Prototype IDs (2) 40 Alien Tech Used (0) 0 Bonus (0) 0 TOTAL SCORE: 1480 Bonus ------- None Cogmind --------- Core Integrity 0/400 Matter 300/300 Energy 100/100 System Corruption 0% Temperature Cool (9) Movement Core (50) Location -9/Materials Parts ------- > --- POWER (1) -------- (None) > --- PROPULSION (4) --- (None) > --- UTILITY (2) ------ (None) > --- WEAPON (2) ------- (None) > --- INVENTORY (5) ---- (None) Peak State ------------ > --- POWER ------------ Ion Engine > --- PROPULSION ------- Light Treads Light Treads > --- UTILITY ---------- Targeting Computer System Shield > --- WEAPON ----------- Pulse Rifle Light Assault Rifle > --- INVENTORY -------- (None) [Rating: 11] Favorites ----------- Power Ion Engine Engine Ion Engine Propulsion Light Treads Treads Light Treads Wheel Wheel Hover Unit Hover Unit Utility Targeting Computer Device Sensor Array Processor Targeting Computer Hackware System Shield Weapon Light Assault Rifle Energy Gun Small Laser Ballistic Gun Light Assault Rifle Launcher Grenade Launcher Special Weapon Mining Laser Build | -11 -10 -9 ------- Run | Yrd Mat Mat Slots Evolved 2 | . . 2 Power . | . . . Propulsion 2 | . . 2 Utility . | . . . Weapon . | . . . Parts Attached 20 | 6 12 2 Power 2 | 2 . . Engine 2 | 2 . . Core . | . . . Reactor . | . . . Propulsion 5 | 2 3 . Treads 2 | . 2 . Leg . | . . . Wheel 2 | 2 . . Hover 1 | . 1 . Flight . | . . . Utility 5 | . 4 1 Device 2 | . 2 . Storage . | . . . Processor 2 | . 2 . Hackware 1 | . . 1 Protection . | . . . Artifact . | . . . Weapon 8 | 2 5 1 Energy Gun 4 | 2 1 1 Energy Cannon . | . . . Ballistic Gun 2 | . 2 . Ballistic Cannon . | . . . Launcher 1 | . 1 . Special Weapon 1 | . 1 . Impact Weapon . | . . . Slashing Weapon . | . . . Piercing Weapon . | . . . Special Melee Weapon . | . . . Unidentified Prototypes . | . . . Parts Lost 10 | . 4 6 Power 1 | . . 1 Propulsion 3 | . 1 2 Utility 2 | . . 2 Weapon 4 | . 3 1 Highest Loss Streak 6 | . 3 6 To Critical Strikes . | . . . Average Slot Usage (%) 75 | . 78 62 Engine 12 | . 14 7 Treads 11 | . 10 17 Wheel 2 | . 2 . Hover 3 | . 4 . Device 5 | . 6 . Processor 14 | . 14 13 Hackware 1 | . . 7 Energy Gun 8 | . 8 9 Ballistic Gun 11 | . 12 7 Launcher 1 | . 1 . Special Weapon 2 | . 2 . Naked Turns 1 | . . 1 Heaviest Build 11 | 8 11 9 Greatest Support 40 | 20 40 40 Greatest Overweight (x) 2 | . 2 . Average Overweight (x) . | . 1 . Largest Inventory Capacity 5 | 5 5 5 Average Capacity 5 | 5 5 5 Most Carried 2 | 1 2 2 Average Carried . | . . . Final Capacity 5 | 5 5 5 Final Carried 1 | 1 . . Class Distribution -------------------- 100% | Mutant Dominant Class ---------------- Mutant | -10/Materials Mutant | -9/Materials Resources | -11 -10 -9 ----------- Run | Yrd Mat Mat Matter Collected 482 | 250 168 64 Remotely . | . . . Salvage Created 466 | 37 281 148 Parts 44 | 4 32 8 Haulers Intercepted 1 | . 1 . Recyclers Shooed . | . . . Parts Field Recycled . | . . . Retrieved Matter . | . . . Parts Self-Destructed . | . . . Prevented . | . . . Kills | -11 -10 -9 ------- Run | Yrd Mat Mat Combat Hostiles Destroyed 17 | 1 12 4 Guns 11 | 1 7 3 AOE 5 | . 5 . Classes Destroyed 6 | 1 4 1 Builder 1 | . 1 . Hauler 1 | . 1 . Watcher 2 | . 2 . Swarmer 9 | . 9 . Grunt 7 | 1 3 3 Sentry 1 | . . 1 Best Kill Streak 12 | 1 12 2 Combat Bots Only 6 | 1 6 2 Max Kills in Single Turn 2 | 1 2 1 Gunslinging . | . . . Exploded 2 | . 2 . Melee . | . . . Uniques/NPCs Destroyed . | . . . Combat | -11 -10 -9 -------- Run | Yrd Mat Mat Hostile Shots Fired 134 | 4 47 83 Missed 29 | 1 9 19 Damage Taken 1269 | 35 382 852 Core 465 | . 54 411 Absorbed by Shields . | . . . Regen/Repaired (Parts) 25 | . 25 . Core Remaining (%) 89 | 100 78 . Volleys Fired 56 | 3 29 24 Largest 2 | 2 2 2 Hottest 83 | 80 70 83 Shots Fired 87 | 6 45 36 Gun 78 | 6 36 36 Cannon . | . . . Launcher 9 | . 9 . Special . | . . . Kinetic 30 | . 18 12 Thermal 36 | 3 9 24 Explosive 9 | . 9 . Electromagnetic 12 | 3 9 . Robot Hit Streak 15 | 1 6 15 Robot Miss Streak 3 | 3 3 3 Penetration Max . | . . . Secondary Targets 2 | . . 2 Max Gunslinging Chain 1 | . . 1 Shots Hit Robots 56 | 2 24 30 Core Hits 31 | 2 21 8 Critical Kills . | . . . Critical Parts Destroyed . | . . . Critical Strikes 1 | . . 1 Burn 1 | . . 1 Melee Attacks . | . . . Impact . | . . . Slashing . | . . . Piercing . | . . . Sneak Attacks . | . . . Combat Hostiles . | . . . Follow-up Attacks . | . . . Damage Inflicted 999 | 20 561 418 Guns 653 | 20 215 418 Cannons . | . . . Explosions 346 | . 346 . Melee . | . . . Ramming . | . . . Kinetic 159 | . 87 72 Thermal 430 | 20 64 346 Explosive 346 | . 346 . Electromagnetic 64 | . 64 . Impact . | . . . Slashing . | . . . Piercing . | . . . Highest Corruption . | . . . Average Corruption . | . . . Corruption Purged . | . . . Corruption Blocked . | . . . Overload Shots . | . . . Overflow Damage 19 | . 19 . Projectiles . | . . . Explosions 19 | . 19 . Melee . | . . . Knockbacks . | . . . Impact . | . . . Kinetic . | . . . Secondary . | . . . Self-Inflicted Damage 39 | . 39 . Shots 1 | . 1 . Rammed . | . . . Targets Rammed . | . . . Kicked . | . . . Crushed . | . . . Highest Temperature 300 | 72 44 300 Average Temperature 93 | 42 16 161 Received Heat Transfer 516 | 18 96 402 Effects 1 | . . 1 Energy Bleed 1 | . . 1 Siege Activations . | . . . Robots Corrupted . | . . . Combat Hostiles . | . . . Parts Fried . | . . . Impact Corruptions . | . . . Robots Melted 1 | . . 1 Combat Hostiles 1 | . . 1 Parts Melted 6 | . . 6 Heat Transferred 1027 | 50 150 827 Parts Sabotaged . | . . . Parts Stolen . | . . . Parts Stripped . | . . . Power Chain Reactions . | . . . Alert | -11 -10 -9 ------- Run | Yrd Mat Mat Peak Influence 365 | 20 365 75 Initial 13 | . 13 . Average 128 | 2 160 35 Maximum Alert Level 1 | . 1 . Low Security (%) 70 | 100 60 100 Level 1 29 | . 39 . Level 2 . | . . . Level 3 . | . . . Level 4 . | . . . Level 5 . | . . . High Security . | . . . Max Security . | . . . Squads Dispatched 3 | . 2 1 Investigation 2 | . 2 . Extermination . | . . . Reinforcement 1 | . . 1 Assault . | . . . Garrison . | . . . Intercept . | . . . Searches Triggered . | . . . Construction Impeded . | . . . Haulers Reinforced . | . . . Active Scanning Responses . | . . . Cargo Convoy Interrupts . | . . . Stealth | -11 -10 -9 --------- Run | Yrd Mat Mat Distress Signals 2 | . 2 . Communications Jammed . | . . . Distress Signals . | . . . Times Spotted 30 | 1 19 10 Peak Tracking Total 6 | 1 6 6 Tactical Retreats 1 | . 1 . Traps | -11 -10 -9 ------- Run | Yrd Mat Mat Traps Triggered . | . . . Indirectly . | . . . Trap Hack Attempts . | . . . Triggered . | . . . Disarmed . | . . . Reprogrammed 4 | . 4 . Reused . | . . . Traps Extracted . | . . . Installed . | . . . Triggered . | . . . Machines | -11 -10 -9 ---------- Run | Yrd Mat Mat Machines Disabled 1 | . 1 . Max in Single Turn 1 | . 1 . Machines Repaired . | . . . Machines Dismantled . | . . . Machines Sabotaged . | . . . Overloaded Fab Kills . | . . . Hacking | -11 -10 -9 --------- Run | Yrd Mat Mat Machines Accessed 7 | . 7 . Terminals 6 | . 6 . Fabricators . | . . . Repair Stations 1 | . 1 . Recycling Units . | . . . Scanalyzers . | . . . Garrison Access . | . . . Total Hacks 37 | . 37 . Successful 28 | . 28 . Failed 9 | . 9 . Catastrophic 1 | . 1 . Database Lockouts . | . . . Manual 5 | . 5 . Terminals 34 | . 34 . Fabricators . | . . . Repair Stations 3 | . 3 . Recycling Units . | . . . Scanalyzers . | . . . Garrison Access . | . . . Terminal Hacks 26 | . 26 . Record 9 | . 9 . Prototype ID Bank 1 | . 1 . Alert Level 3 | . 3 . Unreport Threat 3 | . 3 . Locate Traps 2 | . 2 . Reprogram Traps 1 | . 1 . Dispatch Records 2 | . 2 . Maintenance Status 1 | . 1 . Security Status 1 | . 1 . Surveillance Status 1 | . 1 . Reinforcement Status 1 | . 1 . Zone Layout 1 | . 1 . Fabricator Hacks . | . . . Repair Station Hacks 2 | . 2 . Scan Component 1 | . 1 . Repair 1 | . 1 . Recycling Unit Hacks . | . . . Scanalyzer . | . . . Garrison Access Hacks . | . . . Unauthorized Hacks . | . . . Terminals . | . . . Fabricators . | . . . Repair Stations . | . . . Recycling Units . | . . . Scanalyzers . | . . . Garrison Access . | . . . Data Cores Recovered . | . . . Used . | . . . Hacking Detections 7 | . 7 . Full Trace Events 4 | . 4 . Feedback Events . | . . . Feedback Blocked . | . . . Robot Schematics Acquired . | . . . Robots Built . | . . . Authchips . | . . . Time . | . . . Total Robot Build Rating . | . . . Part Schematics Acquired . | . . . Parts Built . | . . . Authchips . | . . . Time . | . . . Total Part Build Rating . | . . . Parts Repaired 1 | . 1 . Time 26 | . 26 . Parts Recycled . | . . . Recycled Matter . | . . . Retrieved Matter . | . . . Retrieved Components . | . . . Parts Scanalyzed . | . . . Part Schematics Acquired . | . . . Parts Damaged . | . . . Bothacking | -11 -10 -9 ------------ Run | Yrd Mat Mat Used RIF Installer . | . . . Robots Hacked . | . . . Non-combat . | . . . Combat . | . . . Robot Hacks Applied . | . . . Relay Couplers Released . | . . . Fabnet Peak Effective % . | . . . Robots Rewired . | . . . Allies Hacked . | . . . Hacks Repelled . | . . . Allies | -11 -10 -9 -------- Run | Yrd Mat Mat Total Allies . | . . . Largest Group . | . . . Highest-Rated Group . | . . . Highest-Rated Ally . | . . . Total Orders . | . . . Ally Attacks . | . . . Total Damage . | . . . Kills . | . . . Allies Corrupted . | . . . Allies Melted . | . . . Intel | -11 -10 -9 ------- Run | Yrd Mat Mat Robot Analysis Total . | . . . Derelict Logs Recovered . | . . . Drone Launches . | . . . Drone Recoveries . | . . . Exploration | -11 -10 -9 ------------- Run | Yrd Mat Mat Turns Passed 1077 | 66 824 187 Spaces Moved 631 | 62 479 90 Core 299 | 17 251 31 Treads 125 | . 66 59 Legs . | . . . Wheels 103 | 45 58 . Hover 104 | . 104 . Flight . | . . . Fastest Speed 50 | 50 60 50 Average Speed 127 | 71 135 122 Slowest Speed 160 | 80 160 160 Overloaded Moves . | . . . Propulsion Burnouts . | . . . Robots Hopped . | . . . Cave-ins Triggered . | . . . Exploration Rate (%) 30 | 6 74 10 Regions Visited 2 Branch Regions . Pre-discovered Areas . | . . . Known Exits Taken 1 | . 1 . Unknown Exits Taken 1 | 1 . . Scrap Searched . | . . . Spaces Dug . | . . . Terrain Destroyed 51 | . 51 . Melee . | . . . Projectile . | . . . AOE 51 | . 51 . Terrain Rammed . | . . . Walls Destroyed . | . . . Machines Disabled . | . . . Actions | -11 -10 -9 --------- Run | Yrd Mat Mat Total 826 | 76 617 133 Wait 91 | . 78 13 Move 629 | 61 478 90 Hop . | . . . Pick Up 21 | 6 13 2 Fast Attach . | . . . Attach 15 | 5 10 . Detach . | . . . Swap 5 | 1 2 2 Drop 9 | . 7 2 Fire 56 | 3 29 24 Melee . | . . . Ram . | . . . Kick . | . . . Crush . | . . . Escape Stasis . | . . . Rewire . | . . . Trap . | . . . Miscellaneous . | . . . Route ------- -11/Scrapyard -10/Materials (discovered 4 exits: *Mat x3 / [*Min]) -9/Materials History --------- Turn | Location | Event 2 | -11/Scrapyard | Met Revision 17 47 | -11/Scrapyard | Discovered new exit (range 8) 67 | -11/Scrapyard | Entered Materials 183 | -10/Materials | Lost 3 parts (1n2w) 246 | -10/Materials | Repaired Lgt. Assault Rifle 275 | -10/Materials | Discovered new exit (range 15) 320 | -10/Materials | Build established: Mutant 478 | -10/Materials | Discovered new exit (range 7) 487 | -10/Materials | Identified exit to Materials 737 | -10/Materials | Discovered exit to Materials (range 6) 799 | -10/Materials | Discovered exit to Materials (range 15) 891 | -10/Materials | Entered another Materials area 891 | -9/Materials | Evolved 2 slots: Propulsion x2 1055 | -9/Materials | Core integrity fell below 50% 1070 | -9/Materials | Core integrity fell below 20% 1078 | -9/Materials | Destroyed by G-47 Trooper with Particle Gun Last Messages --------------- K-01 Serf collects debris. Lgt. Treads destroyed. Y-45 Defender heat damages core (-7). [Achievement: It's Just You] Lgt. Armor Plating melted. Lgt. Treads melted. Heat Sink melted. K-01 Serf collects debris. W-16 Scout suffers critical hit (Burn). To regain energy, simply wait via the mouse wheel, '.', or KP5. Also make sure your per-turn energy generation is a net positive, and consider deactivating power-draining parts if not. Dropped Pulse Rifle. K-01 Serf collects debris. Critical hit (Burn: +37). Targeting Computer destroyed. System Shield destroyed. [Achievement: First Step to Greatness] Map ----- +----------------------------------------------------+ | ????????????????????# #????????????????????? | | ????????????????????# #????????????????????? | | ????????????????????# #????????????????????? | | ????????????????????# #????????????????????? | | ????????????????????# #????????????????????? | | ????????????????????# #????????????????????? | | ###+################# #????????????????????? | | [ #????????????????????? | | *[== #????????????????????? | | == !% #????????????????????? | | ??#+#############+#######????????????????????? | | ????????????# !%=#?????????????????????????? | | ????????????# #?????????????????????????? | | ????????##### [ ########## #???????????? | | ????????# + / #???????????? | | ????????##### #### ##### #???????????? | | ????????????# #??#g#????????????????????? | | ????????????###########/######???????????????? | | ??????????????????# """ #???????????????? | | ??????????????????## "T" +??#????????????? | | ???????????????????# """ #? #????????????? | | ???????????????????# """ # ####+????????? | | ???????????????????# """ g + #???????? | | ???????????????????# g # #???????? | | ???????????????????# #?#### #???????? | | ???????????????????# @ #???????????????? | | ???????????????????###########???????????????? | | ?????????????????????????????????????????????? | | ?????????????????????????????????????????????? | | ?????????????????????????????????????????????? | | ?????????????????????????????????????????????? | | ?????????????????????????????????????????????? | | ?????????????????????????????????????????????? | | ?????????????????????????????????????????????? | | ?????????????????????????????????????????????? | | ?????????????????????????????????????????????? | | ?????????????????????????????????????????????? | | ?????????????????????????????????????????????? | | ?????????????????????????????????????????????? | | | | | | | | | | | | | | | | | | | | | | | +----------------------------------------------------+ Best States ------------- Heat Dissipation 28 Energy Generation 10 Energy Capacity 250 Matter Stores 300 Matter Capacity 300 Sight Range 16 Robot Scan Range 14 Terrain Scan Density 10 Evasion (%) 50 Targeting Accuracy 5 Recoil Reduction 2 Defensive Hacking 10 Item Schematics ----------------- None Robot Schematics ------------------ None Fabricated ------------ Nothing Alien Tech Used ----------------- None Achievements -------------- Crack Shot Everything Is Under Control First Step to Greatness It's Just You Loot Pinata One Hack Too Far Part-time Mechanic Uninvited Guest Challenges ------------ None Game ------ Seed EtherialGammaAmplifier Manual? 0 Play Time 00:26:22 Cumulative 0.3 hours Start 2024.03.31 @ 11:52:15 End 2024.03.31 @ 12:16:57 Sessions 1 Manual Loads 0 Difficulty Rogue Special Mode None Game No. 1 Rogue 1 Adventurer 0 Explorer 0 Win Type - Total 0 Types 0/0/0/0/0/0/0/0/0 Lore% 0 Gallery% 1 Achievement% 3 Wizard Run 0 Options --------- Layout 1 ASCII 0 Keyboard 0 Movement Mouse Keybinds 0 Fullscreen 1 Font 24/Smallcaps Map View 50x35 Zoom Use 0% Tactical HUD 0 Map Filters NONE Filters NONE Steam 1 RUN: e46f9744-da62-4c23-9a2c-2b2e9c2ac24c